fUSD/lending_fUSD_20240113
["ID","MTS","AMOUNT","RATE_DAILY","PERIOD"]
[311507579,1705168243972,-500.0,0.00022151,2]
[311507580,1705168243982,-500.0,0.00022151,2]
[311507581,1705168243992,-500.0,0.00022151,2]
[311507582,1705168244001,-500.0,0.00022151,2]
[311507583,1705168244012,-538.19,0.00022151,2]
[311507584,1705168244021,-500.0,0.00022151,2]
[311507585,1705168244031,-500.0,0.00022151,2]
[311507586,1705168244041,-500.0,0.00022151,2]
[311507587,1705168244050,-500.0,0.00022151,2]
[311507588,1705168244059,-500.0,0.00022151,2]
[311507589,1705168244069,-500.0,0.00022152,2]
[311507590,1705168244078,-861.55,0.00022152,2]
[311507591,1705168244087,-150.99,0.00022152,2]
[311507592,1705168244096,-3322.69,0.00022152,2]
[311507593,1705168244105,-1100.99,0.00022152,2]
[311507594,1705168244115,-276.25490897,0.00022187,2]
[311507595,1705168244124,-155.25690599,0.00022221,2]
[311507596,1705168244133,-276.25490897,0.00022233,2]
[311507597,1705168244143,-150.57,0.00022245,2]
[311507598,1705168244153,-500.0,0.00022248,2]
[311507599,1705168244162,-500.0,0.00022248,2]
[311507600,1705168244171,-500.0,0.00022248,2]
[311507601,1705168244181,-500.0,0.00022248,2]
[311507602,1705168244190,-500.0,0.00022248,2]
[311507603,1705168244200,-500.0,0.00022248,2]
[311507604,1705168244209,-500.0,0.00022248,2]
[311507605,1705168244218,-500.0,0.00022248,2]
[311507606,1705168244228,-468.05440349,0.00022248,2]
[311507607,1705168244238,-500.0,0.00022248,2]
[311507608,1705168244247,-199.08167296,0.00022248,2]
[311507609,1705168244256,-500.0,0.00022248,2]
[311507610,1705168244266,-500.0,0.00022248,2]
[311507611,1705168244279,-500.0,0.00022248,2]
[311507612,1705168244288,-500.0,0.00022248,2]
[311507613,1705168244298,-500.0,0.00022248,2]
[311507614,1705168244307,-500.0,0.00022248,2]
[311507615,1705168244317,-500.0,0.00022248,2]
[311507616,1705168244326,-500.0,0.00022248,2]
[311507617,1705168244335,-500.0,0.00022248,2]
[311507618,1705168244345,-500.0,0.00022248,2]
[311507619,1705168244354,-500.0,0.00022248,2]
[311507620,1705168244364,-500.0,0.00022248,2]
[311507621,1705168244373,-500.0,0.00022248,2]
[311507622,1705168244382,-500.0,0.00022248,2]
[311507623,1705168244391,-500.0,0.00022248,2]
[311507624,1705168244400,-500.0,0.00022248,2]
[311507625,1705168244409,-500.0,0.00022248,2]
[311507626,1705168244418,-500.0,0.00022248,2]
[311507627,1705168244427,-500.0,0.00022248,2]
[311507628,1705168244436,-597.58,0.00022248,2]
[311507629,1705168244445,-500.0,0.00022248,2]
[311507630,1705168244454,-500.0,0.00022248,2]
[311507631,1705168244463,-500.0,0.00022248,2]
[311507632,1705168244472,-500.0,0.00022248,2]
[311507633,1705168244481,-500.0,0.00022248,2]
[311507634,1705168244490,-500.0,0.00022248,2]
[311507635,1705168244499,-500.0,0.00022248,2]
[311507636,1705168244508,-500.0,0.00022248,2]
[311507637,1705168244517,-500.0,0.00022248,2]
[311507638,1705168244527,-500.0,0.00022248,2]
[311507639,1705168244536,-500.0,0.00022248,2]
[311507640,1705168244545,-500.0,0.00022248,2]
[311507641,1705168244556,-500.0,0.00022248,2]
[311507642,1705168244565,-500.0,0.00022248,2]
[311507643,1705168244574,-500.0,0.00022248,2]
[311507644,1705168244583,-500.0,0.00022248,2]
[311507645,1705168244593,-500.0,0.00022248,2]
[311507646,1705168244602,-500.0,0.00022248,2]
[311507647,1705168244611,-500.0,0.00022248,2]
[311507648,1705168244621,-500.0,0.00022248,2]
[311507649,1705168244630,-500.0,0.00022248,2]
[311507650,1705168244639,-500.0,0.00022248,2]
[311507651,1705168244648,-500.0,0.00022248,2]
[311507652,1705168244658,-500.0,0.00022248,2]
[311507653,1705168244667,-500.0,0.00022248,2]
[311507654,1705168244677,-500.0,0.00022248,2]
[311507655,1705168244686,-500.0,0.00022248,2]
[311507656,1705168244695,-500.0,0.00022248,2]
[311507657,1705168244704,-500.0,0.00022248,2]
[311507658,1705168244713,-500.0,0.00022248,2]
[311507659,1705168244722,-500.0,0.00022248,2]
[311507660,1705168244732,-500.0,0.00022248,2]
[311507661,1705168244741,-500.0,0.00022248,2]
[311507662,1705168244750,-500.0,0.00022248,2]
[311507663,1705168244759,-500.0,0.00022248,2]
[311507664,1705168244768,-500.0,0.00022248,5]
[311507665,1705168244778,-192.58,0.00022248,2]
[311507666,1705168244787,-567.82,0.00022248,2]
[311507667,1705168244797,-634.36,0.00022248,2]
[311507668,1705168244807,-500.0,0.00022248,2]
[311507669,1705168244817,-500.0,0.00022248,2]
[311507670,1705168244827,-500.0,0.00022248,2]
[311507677,1705168245020,-500.0,0.00022248,2]
[311507680,1705168245030,-500.0,0.00022248,2]
[311507683,1705168245039,-500.0,0.00022248,2]
[311507685,1705168245048,-724.85,0.0002225,2]
[311507687,1705168245057,-300.0,0.00022252,2]
[311507689,1705168245066,-300.0,0.00022252,2]
[311507691,1705168245076,-300.0,0.00022252,2]
[311507693,1705168245085,-300.0,0.00022252,2]
[311507695,1705168245094,-300.0,0.00022252,2]
[311507697,1705168245104,-300.0,0.00022252,2]
[311507700,1705168245113,-300.0,0.00022252,2]
[311507702,1705168245122,-300.0,0.00022252,2]
[311507705,1705168245132,-300.0,0.00022252,2]
[311507708,1705168245141,-276.25490897,0.00022279,2]
[311507710,1705168245151,-276.25490897,0.00022325,2]
[311507712,1705168245160,-276.25490897,0.00022371,2]
[311507714,1705168245169,-155.25690599,0.00022391,2]
[311507716,1705168245178,-300.0,0.00022399,2]
[311507718,1705168245188,-276.25490897,0.00022417,2]
[311507720,1705168245197,-276.25490897,0.00022464,2]
[311507722,1705168245206,-276.25490897,0.0002251,2]
[311507724,1705168245216,-276.25490897,0.00022556,2]
[311507727,1705168245226,-155.25690599,0.0002256,2]
[311507729,1705168245236,-276.25490897,0.00022602,2]
[311507731,1705168245245,-276.25490897,0.00022648,2]
[311507733,1705168245254,-276.25490897,0.00022694,2]
[311507735,1705168245264,-546.84,0.00022695,2]
[311507737,1705168245273,-177.95,0.00022708,2]
[311507739,1705168245282,-150.0,0.0002273,2]
[311507741,1705168245291,-155.25690599,0.0002273,2]
[311507743,1705168245301,-150.0,0.00022732,2]
[311507745,1705168245310,-150.0,0.00022736,2]
[311507747,1705168245320,-276.25490897,0.0002274,2]
[311507749,1705168245329,-150.0,0.00022744,2]
[311507751,1705168245338,-150.0,0.00022745,2]
[311507753,1705168245347,-300.0,0.00022747,2]
[311507755,1705168245357,-152.71432783,0.00022747,2]
[311507757,1705168245366,-1500.0,0.00022751,2]
[311507759,1705168245375,-150.0,0.00022764,2]
[311507761,1705168245385,-271.48297066,0.00022764,2]
[311507763,1705168245393,-150.0,0.0002277,2]
[311507765,1705168245402,-247.44372753,0.00022773,2]
[311507767,1705168245412,-276.25490897,0.00022786,2]
[311507769,1705168245421,-150.0,0.00022787,2]
[311507771,1705168245430,-150.0,0.00022791,2]
[311507773,1705168245439,-200.0,0.000228,2]
[311507775,1705168245448,-800.0,0.000228,2]
[311507777,1705168245457,-200.0,0.00022803,2]
[311507779,1705168245466,-150.0,0.00022805,2]
[311507781,1705168245475,-500.0,0.00022805,2]
[311507783,1705168245485,-200.0,0.00022805,2]
[311507785,1705168245494,-150.0,0.0002281,2]
[311507786,1705168245503,-200.0,0.0002281,2]
[311507787,1705168245512,-150.0,0.00022814,2]
[311507788,1705168245521,-150.0,0.00022815,2]
[311507789,1705168245530,-200.0,0.00022815,2]
[311507790,1705168245542,-150.0,0.00022825,2]
[311507791,1705168245551,-276.25490897,0.00022832,2]
[311507792,1705168245560,-2112.45721984,0.00022832,3]
[311507793,1705168245569,-1500.0,0.00022842,2]
[311507794,1705168245578,-500.0,0.00022849,2]
[311507795,1705168245587,-150.0,0.00022851,2]
[311507796,1705168245596,-150.0,0.00022854,2]
[311507797,1705168245605,-150.0,0.00022857,2]
[311507798,1705168245614,-150.0,0.00022859,2]
[311507799,1705168245623,-150.0,0.0002286,2]
[311507800,1705168245632,-150.0,0.00022865,2]
[311507801,1705168245641,-150.0,0.00022866,2]
[311507802,1705168245651,-150.0,0.00022867,2]
[311507803,1705168245659,-150.0,0.0002287,2]
[311507804,1705168245668,-150.0,0.00022877,2]
[311507805,1705168245678,-1316.01410306,0.00022878,2]
[311507806,1705168245687,-1074.61098189,0.00022878,2]
[311507807,1705168245696,-276.25490897,0.00022878,2]
[311507808,1705168245705,-214.26312491,0.00022878,2]
[311507809,1705168245715,-193.68462286,0.00022879,2]
[311507810,1705168245724,-1316.01410302,0.0002288,2]
[311507811,1705168245733,-1316.01410302,0.00022882,2]
[311507812,1705168245742,-1316.01410302,0.00022884,2]
[311507813,1705168245752,-150.0,0.00022886,2]
[311507814,1705168245761,-1316.01410302,0.00022886,2]
[311507815,1705168245772,-1316.01410302,0.00022888,2]
[311507816,1705168245784,-1074.61098188,0.00022889,2]
[311507817,1705168245794,-214.2631249,0.00022889,2]
[311507818,1705168245808,-1316.01410302,0.0002289,2]
[311507819,1705168245817,-1316.01410302,0.00022892,2]
[311507820,1705168245827,-1316.01410302,0.00022894,2]
[311507821,1705168245836,-1316.01410302,0.00022896,2]
[311507822,1705168245845,-500.0,0.00022897,2]
[311507823,1705168245855,-500.0,0.00022897,2]
[311507824,1705168245864,-2158.22,0.00022897,2]
[311507825,1705168245874,-500.0,0.00022897,2]
[311507826,1705168245884,-500.0,0.00022897,2]
[311507827,1705168245894,-577.44207636,0.00022897,2]
[311507828,1705168245904,-500.0,0.00022897,2]
[311507829,1705168245913,-500.0,0.00022897,2]
[311507830,1705168245923,-500.0,0.00022897,2]
[311507831,1705168245934,-1428.93,0.00022897,2]
[311507832,1705168245943,-500.0,0.00022897,2]
[311507833,1705168245953,-500.0,0.00022897,2]
[311507834,1705168245962,-500.0,0.00022897,2]
[311507835,1705168245972,-500.0,0.00022897,2]
[311507836,1705168245981,-500.0,0.00022897,2]
[311507837,1705168245991,-500.0,0.00022897,2]
[311507838,1705168246000,-500.0,0.00022897,2]
[311507839,1705168246010,-500.0,0.00022897,2]
[311507840,1705168246020,-1255.49,0.00022897,2]
[311507841,1705168246033,-500.0,0.00022897,2]
[311507842,1705168246042,-1102.49,0.00022897,2]
[311507843,1705168246051,-2731.67,0.00022897,2]
[311507844,1705168246060,-500.0,0.00022897,2]
[311507845,1705168246069,-500.0,0.00022897,2]
[311507846,1705168246078,-500.0,0.00022897,2]
[311507847,1705168246087,-500.0,0.00022898,2]
[311507848,1705168246096,-500.0,0.00022898,2]
[311507849,1705168246106,-500.0,0.00022898,2]
[311507850,1705168246116,-500.0,0.00022898,2]
[311507851,1705168246125,-500.0,0.00022898,2]
[311507852,1705168246135,-500.0,0.00022898,2]
[311507853,1705168246144,-500.0,0.00022898,2]
[311507854,1705168246154,-639.47492777,0.00022898,2]
[311507855,1705168246163,-500.0,0.00022898,2]
[311507856,1705168246173,-377.70319054,0.00022898,2]
[311507857,1705168246182,-500.0,0.00022898,2]
[311507858,1705168246192,-500.0,0.00022898,2]
[311507859,1705168246202,-500.0,0.00022898,2]
[311507860,1705168246211,-295.695536,0.00022898,2]
[311507861,1705168246221,-500.0,0.00022898,2]
[311507862,1705168246230,-500.0,0.00022898,2]
[311507863,1705168246240,-500.0,0.00022898,2]
[311507864,1705168246250,-500.0,0.00022898,2]
[311507865,1705168246259,-500.0,0.00022898,2]
[311507866,1705168246268,-363.78177404,0.00022898,2]
[311507867,1705168246281,-500.0,0.00022898,2]
[311507868,1705168246291,-500.0,0.00022898,2]
[311507869,1705168246302,-500.0,0.00022898,2]
[311507870,1705168246312,-500.0,0.00022898,2]
[311507871,1705168246323,-500.0,0.00022898,2]
[311507872,1705168246333,-500.0,0.00022898,2]
[311507873,1705168246344,-500.0,0.00022898,2]
[311507874,1705168246355,-515.61108029,0.00022898,2]
[311507875,1705168246366,-500.0,0.00022898,2]
[311507876,1705168246376,-500.0,0.00022898,2]
[311507877,1705168246386,-500.0,0.00022898,2]
[311507878,1705168246395,-500.0,0.00022898,2]
[311507879,1705168246405,-500.0,0.00022898,2]
[311507880,1705168246414,-161.8,0.00022898,2]
[311507881,1705168246423,-500.0,0.00022898,2]
[311507882,1705168246433,-500.0,0.00022898,2]
[311507883,1705168246442,-531.5,0.00022898,2]
[311507884,1705168246451,-500.0,0.00022898,2]
[311507885,1705168246461,-500.0,0.00022898,2]
[311507886,1705168246470,-500.0,0.00022898,2]
[311507887,1705168246479,-500.0,0.00022898,2]
[311507888,1705168246489,-500.0,0.00022898,2]
[311507889,1705168246499,-565.74914508,0.00022898,2]
[311507890,1705168246508,-500.0,0.00022898,2]
[311507891,1705168246519,-891.64,0.00022898,2]
[311507892,1705168246531,-500.0,0.00022898,2]
[311507893,1705168246542,-931.13,0.00022898,2]
[311507894,1705168246551,-500.0,0.00022898,2]
[311507895,1705168246561,-572.96,0.00022898,2]
[311507896,1705168246571,-500.0,0.00022898,2]
[311507897,1705168246580,-500.0,0.00022898,2]
[311507898,1705168246590,-500.0,0.00022898,2]
[311507899,1705168246599,-500.0,0.00022898,2]
[311507900,1705168246608,-500.0,0.00022898,2]
[311507901,1705168246618,-369.85141717,0.00022898,2]
[311507902,1705168246627,-500.0,0.00022898,2]
[311507903,1705168246637,-500.0,0.00022898,2]
[311507904,1705168246646,-500.0,0.00022898,2]
[311507905,1705168246655,-500.0,0.00022898,2]
[311507906,1705168246664,-500.0,0.00022898,2]
[311507907,1705168246674,-500.0,0.00022898,2]
[311507908,1705168246684,-500.0,0.00022898,2]
[311507909,1705168246694,-500.0,0.00022898,2]
[311507910,1705168246703,-500.0,0.00022898,2]
[311507911,1705168246712,-518.9,0.00022898,2]
[311507912,1705168246722,-529.58,0.00022898,2]
[311507913,1705168246733,-538.19,0.00022898,2]
[311507914,1705168246743,-500.0,0.00022898,2]
[311507915,1705168246752,-500.0,0.00022898,2]
[311507916,1705168246761,-500.0,0.00022898,2]
[311507917,1705168246771,-2070.92,0.00022898,2]
[311507918,1705168246781,-647.2420859,0.00022898,2]
[311507919,1705168246790,-377.39349212,0.00022898,2]
[311507920,1705168246800,-500.0,0.00022898,2]
[311507921,1705168246811,-500.0,0.00022898,2]
[311507922,1705168246822,-500.0,0.00022898,2]
[311507923,1705168246832,-500.0,0.00022898,2]
[311507924,1705168246841,-500.0,0.00022898,2]
[311507925,1705168246851,-500.0,0.00022898,2]
[311507926,1705168246860,-500.0,0.00022898,2]
[311507927,1705168246869,-441.76325872,0.00022898,2]
[311507928,1705168246879,-500.0,0.00022898,2]
[311507929,1705168246890,-500.0,0.00022898,2]
[311507930,1705168246901,-500.0,0.00022898,2]
[311507931,1705168246910,-500.0,0.00022898,2]
[311507932,1705168246919,-500.0,0.00022898,2]
[311507933,1705168246929,-160.32,0.00022898,2]
[311507934,1705168246938,-500.0,0.00022898,2]
[311507935,1705168246947,-500.0,0.00022898,2]
[311507936,1705168246956,-500.0,0.00022898,2]
[311507937,1705168246966,-279.02,0.00022898,2]
[311507938,1705168246975,-500.0,0.00022898,2]
[311507939,1705168246984,-500.0,0.00022898,2]
[311507940,1705168246994,-500.0,0.00022898,2]
[311507941,1705168247003,-500.0,0.00022898,2]
[311507942,1705168247013,-500.0,0.00022898,2]
[311507943,1705168247023,-500.0,0.00022898,2]
[311507944,1705168247032,-500.0,0.00022898,2]
[311507945,1705168247041,-500.0,0.00022898,2]
[311507946,1705168247051,-500.0,0.00022898,2]
[311507947,1705168247060,-500.0,0.00022898,2]
[311507948,1705168247070,-500.0,0.00022898,2]
[311507949,1705168247079,-500.0,0.00022898,2]
[311507950,1705168247089,-500.0,0.00022898,2]
[311507951,1705168247098,-500.0,0.00022898,2]
[311507952,1705168247108,-500.0,0.00022898,5]
[311507953,1705168247117,-529.72,0.00022898,2]
[311507954,1705168247127,-500.0,0.00022898,2]
[311507955,1705168247136,-500.0,0.00022898,2]
[311507956,1705168247146,-500.0,0.00022898,2]
[311507957,1705168247155,-500.0,0.00022898,2]
[311507958,1705168247164,-500.0,0.00022898,2]
[311507959,1705168247173,-963.33,0.00022898,2]
[311507960,1705168247183,-500.0,0.00022898,2]
[311507961,1705168247192,-500.0,0.00022898,2]
[311507962,1705168247201,-772.62,0.00022898,2]
[311507963,1705168247211,-518.18653473,0.00022898,2]
[311507964,1705168247220,-500.0,0.00022898,2]
[311507965,1705168247230,-500.0,0.00022898,2]
[311507966,1705168247239,-1316.01410302,0.00022898,2]
[311507967,1705168247249,-500.0,0.00022898,2]
[311507968,1705168247258,-500.0,0.00022898,2]
[311507969,1705168247267,-500.0,0.00022898,2]
[311507970,1705168247278,-500.0,0.00022898,2]
[311507971,1705168247287,-500.0,0.00022898,2]
[311507972,1705168247297,-500.0,0.00022898,2]
[311507973,1705168247360,-1452.34,0.00022898,2]
[311507974,1705168247369,-576.98,0.00022898,2]
[311507975,1705168247378,-500.0,0.00022898,2]
[311507976,1705168247388,-500.0,0.00022898,2]
[311507977,1705168247397,-176.0,0.00022898,2]
[311507978,1705168247407,-500.0,0.00022898,2]
[311507979,1705168247417,-500.0,0.00022898,2]
[311507980,1705168247426,-500.0,0.00022898,2]
[311507981,1705168247436,-500.0,0.00022898,2]
[311507982,1705168247445,-500.0,0.00022898,2]
[311507983,1705168247455,-170.7,0.00022898,2]
[311507984,1705168247464,-500.0,0.00022898,2]
[311507985,1705168247473,-500.0,0.00022898,2]
[311507986,1705168247482,-500.0,0.00022898,2]
[311507987,1705168247491,-500.0,0.00022898,2]
[311507988,1705168247500,-500.0,0.00022898,2]
[311507989,1705168247509,-500.0,0.00022898,2]
[311507990,1705168247518,-500.0,0.00022898,2]
[311507991,1705168247529,-500.0,0.00022898,2]
[311507992,1705168247538,-500.0,0.00022898,2]
[311507993,1705168247547,-500.0,0.00022898,2]
[311507994,1705168247555,-479.9,0.00022898,2]
[311507995,1705168247565,-500.0,0.00022898,2]
[311507996,1705168247574,-500.0,0.00022898,2]
[311507997,1705168247583,-39465.5965,0.00022899,2]
[311507998,1705168247592,-100000.0,0.00022899,2]
[311507999,1705168247601,-250.0,0.000229,2]
[311508000,1705168247610,-150.0,0.000229,2]
[311508001,1705168247619,-1316.01410302,0.000229,2]
[311508002,1705168247628,-1074.61098188,0.000229,2]
[311508003,1705168247637,-155.25690599,0.000229,2]
[311508004,1705168247646,-214.2631249,0.000229,2]
[311508005,1705168247655,-150.0,0.00022901,2]
[311508006,1705168247664,-150.0,0.00022901,2]
[311508007,1705168247673,-150.0,0.00022901,2]
[311508008,1705168247681,-150.0,0.00022909,2]
[311508009,1705168247690,-150.0,0.00022914,2]
[311508010,1705168247700,-150.0,0.00022914,2]
[311508011,1705168247709,-150.0,0.00022917,2]
[311508012,1705168247718,-150.0,0.00022941,2]
[311508013,1705168247727,-150.0,0.00022947,2]
[311508014,1705168247736,-150.0,0.00022947,2]
[311508015,1705168247745,-1500.0,0.00022949,2]
[311508016,1705168247754,-150.0,0.00022963,2]
[311508017,1705168247763,-150.0,0.00022964,2]
[311508018,1705168247772,-150.0,0.00022972,2]
[311508019,1705168247781,-307.04,0.00022973,2]
[311508020,1705168247790,-1355.0,0.00022973,2]
[311508021,1705168247799,-1852.0,0.00022973,2]
[311508022,1705168247808,-945.0,0.00022973,2]
[311508023,1705168247820,-835.0,0.00022973,2]
[311508024,1705168247829,-1234.0,0.00022973,2]
[311508025,1705168247838,-1252.0,0.00022973,2]
[311508026,1705168247848,-240.038,0.00022973,2]
[311508027,1705168247857,-1931.0,0.00022973,2]
[311508028,1705168247866,-494.879,0.00022973,2]
[311508029,1705168247875,-879.0,0.00022973,2]
[311508030,1705168247884,-507.0,0.00022973,2]
[311508031,1705168247894,-235.0,0.00022973,2]
[311508032,1705168247903,-318.0,0.00022973,2]
[311508033,1705168247912,-7343.0,0.00022973,2]
[311508034,1705168247921,-2902.0,0.00022973,2]
[311508035,1705168247931,-167.959,0.00022973,2]
[311508036,1705168247940,-2271.0,0.00022973,2]
[311508037,1705168247949,-8086.0,0.00022973,2]
[311508038,1705168247958,-19683.0,0.00022973,2]
[311508039,1705168247967,-150.0,0.00022973,2]
[311508040,1705168247976,-150.436,0.00022973,2]
[311508041,1705168247984,-284.928,0.00022973,2]
[311508042,1705168247993,-150.0,0.00022973,2]
[311508043,1705168248002,-1028.0,0.00022973,2]
[311508044,1705168248011,-159.578,0.00022973,2]
[311508045,1705168248021,-150.649,0.00022973,2]
[311508046,1705168248030,-150.0,0.00022973,2]
[311508047,1705168248039,-250.0,0.00022973,2]
[311508048,1705168248047,-746363.95850001,0.00022977,2]
[311508049,1705168248057,-500.0,0.00022977,2]
[311508050,1705168248065,-500.0,0.00022977,2]
[311508051,1705168248074,-500.0,0.00022977,2]
[311508052,1705168248083,-500.0,0.00022977,2]
[311508053,1705168248092,-500.0,0.00022977,2]
[311508054,1705168248101,-500.0,0.00022977,2]
[311508055,1705168248111,-500.0,0.00022977,2]
[311508056,1705168248119,-355.72396788,0.00022977,2]
[311508057,1705168248128,-500.0,0.00022977,2]
[311508058,1705168248138,-500.0,0.00022977,2]
[311508059,1705168248147,-500.0,0.00022977,2]
[311508060,1705168248156,-500.0,0.00022977,2]
[311508061,1705168248166,-500.0,0.00022977,2]
[311508062,1705168248175,-500.0,0.00022977,2]
[311508063,1705168248184,-500.0,0.00022977,2]
[311508064,1705168248193,-500.0,0.00022977,2]
[311508065,1705168248203,-500.0,0.00022977,2]
[311508066,1705168248212,-500.0,0.00022977,2]
[311508067,1705168248221,-279.55113967,0.00022977,2]
[311508068,1705168248231,-500.0,0.00022977,2]
[311508069,1705168248240,-500.0,0.00022977,2]
[311508070,1705168248249,-500.0,0.00022977,2]
[311508071,1705168248258,-500.0,0.00022977,2]
[311508072,1705168248267,-500.0,0.00022977,2]
[311508073,1705168248277,-500.0,0.00022977,2]
[311508074,1705168248286,-500.0,0.00022977,2]
[311508075,1705168248296,-500.0,0.00022977,2]
[311508076,1705168248305,-500.0,0.00022977,2]
[311508077,1705168248314,-500.0,0.00022977,2]
[311508078,1705168248323,-500.0,0.00022977,2]
[311508079,1705168248333,-500.0,0.00022977,2]
[311508080,1705168248342,-500.0,0.00022977,2]
[311508081,1705168248351,-500.0,0.00022977,2]
[311508082,1705168248360,-500.0,0.00022977,2]
[311508083,1705168248369,-500.0,0.00022977,2]
[311508084,1705168248378,-500.0,0.00022977,2]
[311508085,1705168248387,-500.0,0.00022977,2]
[311508086,1705168248396,-500.0,0.00022977,2]
[311508087,1705168248404,-500.0,0.00022977,2]
[311508088,1705168248414,-317.77,0.00022977,2]
[311508089,1705168248422,-2158.22,0.00022977,2]
[311508090,1705168248431,-2158.22,0.00022977,2]
[311508091,1705168248441,-2158.22,0.00022977,2]
[311508092,1705168248450,-2158.22,0.00022977,2]
[311508093,1705168248459,-2158.22,0.00022977,2]
[311508094,1705168248467,-500.0,0.00022977,2]
[311508095,1705168248476,-500.0,0.00022977,2]
[311508096,1705168248486,-500.0,0.00022977,2]
[311508097,1705168248494,-500.0,0.00022977,2]
[311508098,1705168248503,-500.0,0.00022977,2]
[311508099,1705168248513,-500.0,0.00022977,2]
[311508100,1705168248522,-500.0,0.00022977,2]
[311508101,1705168248531,-471.18916057,0.00022977,2]
[311508102,1705168248540,-500.0,0.00022977,2]
[311508103,1705168248549,-500.0,0.00022977,2]
[311508104,1705168248558,-500.0,0.00022977,2]
[311508105,1705168248567,-500.0,0.00022977,2]
[311508106,1705168248575,-500.0,0.00022977,2]
[311508107,1705168248585,-500.0,0.00022977,2]
[311508108,1705168248593,-500.0,0.00022977,2]
[311508109,1705168248602,-500.0,0.00022977,2]
[311508110,1705168248611,-500.0,0.00022977,2]
[311508111,1705168248621,-500.0,0.00022977,2]
[311508112,1705168248630,-500.0,0.00022977,2]
[311508113,1705168248640,-500.0,0.00022977,2]
[311508114,1705168248649,-500.0,0.00022977,2]
[311508115,1705168248659,-500.0,0.00022977,2]
[311508116,1705168248668,-500.0,0.00022977,2]
[311508117,1705168248677,-500.0,0.00022977,2]
[311508118,1705168248686,-476.83553,0.00022977,2]
[311508119,1705168248696,-1428.93,0.00022977,2]
[311508120,1705168248705,-1428.93,0.00022977,2]
[311508121,1705168248714,-1428.93,0.00022977,2]
[311508122,1705168248723,-1428.93,0.00022977,2]
[311508123,1705168248732,-1428.93,0.00022977,2]
[311508124,1705168248742,-500.0,0.00022977,2]
[311508125,1705168248754,-500.0,0.00022977,2]
[311508126,1705168248764,-500.0,0.00022977,2]
[311508127,1705168248774,-500.0,0.00022977,2]
[311508128,1705168248783,-500.0,0.00022977,2]
[311508129,1705168248793,-500.0,0.00022977,2]
[311508130,1705168248803,-500.0,0.00022977,2]
[311508131,1705168248815,-500.0,0.00022977,2]
[311508132,1705168248824,-500.0,0.00022977,2]
[311508133,1705168248833,-500.0,0.00022977,2]
[311508134,1705168248842,-500.0,0.00022977,2]
[311508135,1705168248852,-152.30434775,0.00022977,2]
[311508136,1705168248862,-500.0,0.00022977,2]
[311508137,1705168248872,-500.0,0.00022977,2]
[311508138,1705168248882,-500.0,0.00022977,2]
[311508139,1705168248893,-500.0,0.00022977,2]
[311508140,1705168248905,-500.0,0.00022977,2]
[311508141,1705168248915,-500.0,0.00022977,2]